Cogmind - Beta 15 @@@ ROGUE MODE // 2025.07.23 @ 17:21:34 Player: Verosikka Result: Destroyed by as-30227 with Assembled Maul Performance ------------- Evolutions (0) 0 Regions Visited (4) 800 Robots Destroyed (4) 20 Value Destroyed (136) 136 Prototype IDs (0) 0 Alien Tech Used (0) 0 Bonus (0) 0 TOTAL SCORE: 956 Bonus ------- None Cogmind --------- Core Integrity 0/250 Matter 300/300 Energy 98/100 System Corruption 9% Temperature Cool (1) Movement Walking (120) Location -9/Mines Parts ------- > --- POWER (1) -------- (None) > --- PROPULSION (2) --- Aluminum Leg > --- UTILITY (2) ------ Small Storage Unit > --- WEAPON (2) ------- Hammer > --- INVENTORY (8) ---- High-capacity Battery (250) Large Matter Pod (150) Improved Targeting Computer Shield Generator Peak State ------------ > --- POWER ------------ Light Ion Engine > --- PROPULSION ------- Compact Wheel Compact Wheel > --- UTILITY ---------- Small Storage Unit Terrain Scanner > --- WEAPON ----------- Light Assault Rifle > --- INVENTORY -------- (None) [Rating: 6] Favorites ----------- Power Light Ion Engine Engine Light Ion Engine Propulsion Compact Wheel Leg Aluminum Leg Wheel Compact Wheel Utility Small Storage Unit Device Terrain Scanner Storage Small Storage Unit Weapon Light Assault Rifle Ballistic Gun Light Assault Rifle Impact Weapon Hammer Build | -11 -10 -10 -10 -9 ------- Run | Yrd Mat Min Exi Min Slots Evolved . | . . . . . Power . | . . . . . Propulsion . | . . . . . Utility . | . . . . . Weapon . | . . . . . Parts Attached 9 | 5 1 . . 3 Power 2 | 1 . . . 1 Engine 2 | 1 . . . 1 Core . | . . . . . Reactor . | . . . . . Propulsion 3 | 2 . . . 1 Treads . | . . . . . Leg 1 | . . . . 1 Wheel 2 | 2 . . . . Hover . | . . . . . Flight . | . . . . . Utility 2 | 1 1 . . . Device 1 | . 1 . . . Storage 1 | 1 . . . . Processor . | . . . . . Hackware . | . . . . . Protection . | . . . . . Artifact . | . . . . . Weapon 2 | 1 . . . 1 Energy Gun . | . . . . . Energy Cannon . | . . . . . Ballistic Gun 1 | 1 . . . . Ballistic Cannon . | . . . . . Launcher . | . . . . . Special Weapon . | . . . . . Impact Weapon 1 | . . . . 1 Slashing Weapon . | . . . . . Piercing Weapon . | . . . . . Special Melee Weapon . | . . . . . Unidentified Prototypes . | . . . . . Parts Lost 6 | . . . . 6 Power 2 | . . . . 2 Propulsion 2 | . . . . 2 Utility 1 | . . . . 1 Weapon 1 | . . . . 1 Highest Loss Streak 3 | . . . . 3 To Critical Strikes . | . . . . . Average Backups 3 | . 1 3 4 4 Power . | . . . . . Propulsion . | . . . . . Utility 3 | . 1 3 4 4 Weapon . | . . . . . Tool/Special . | . . . . . Unused Backups 4 | . . . . 4 Power . | . . . . . Propulsion . | . . . . . Utility 4 | . . . . 4 Weapon . | . . . . . Tool/Special . | . . . . . Average Slot Usage (%) 82 | . 81 85 85 71 Engine 13 | . 14 14 14 8 Leg 1 | . . . . 9 Wheel 24 | . 28 28 28 3 Device 13 | . 10 14 14 14 Storage 14 | . 14 14 14 14 Ballistic Gun 14 | . 14 14 14 14 Impact Weapon 1 | . . . . 8 Peak Build Rating 6 | 5 6 6 6 6 Average Rating 5 | 3 5 6 6 5 On Entrance 4 | . 5 6 6 6 Naked Turns . | . . . . . Heaviest Build 14 | 9 10 10 10 14 Greatest Support 32 | 32 32 32 32 10 Greatest Overweight (x) 2 | . . . . 2 Average Overweight (x) . | . . . . . Largest Inventory Capacity 8 | 8 8 8 8 8 Average Capacity 7 | 6 8 8 8 8 Most Carried 4 | . 3 4 4 4 Average Carried 3 | . 1 3 4 4 Final Capacity 8 | 8 8 8 8 8 Final Carried 4 | . 3 4 4 4 Class Distribution -------------------- 100% | Mutant Dominant Class ---------------- Mutant | -10/Materials Mutant | -10/Mines Mutant | -10/Exiles Mutant | -9/Mines Resources | -11 -10 -10 -10 -9 ----------- Run | Yrd Mat Min Exi Min Matter Collected 480 | 226 203 . . 51 Remotely . | . . . . . Salvage Created 166 | . 118 . . 48 Parts 10 | . 8 . . 2 Haulers Intercepted . | . . . . . Recyclers Shooed . | . . . . . Parts Field Recycled . | . . . . . Retrieved Matter . | . . . . . Parts Self-Destructed . | . . . . . Prevented . | . . . . . Kills | -11 -10 -10 -10 -9 ------- Run | Yrd Mat Min Exi Min Combat Hostiles Destroyed 4 | . 3 . . 1 Guns 4 | . 3 . . 1 Classes Destroyed 1 | . 1 . . . Grunt 4 | . 3 . . 1 Best Kill Streak 3 | . 3 . . 1 Combat Bots Only 3 | . 3 . . 1 Max Kills in Single Turn 1 | . 1 . . 1 Gunslinging . | . . . . . Exploded . | . . . . . Melee . | . . . . . Uniques/NPCs Destroyed . | . . . . . Combat | -11 -10 -10 -10 -9 -------- Run | Yrd Mat Min Exi Min Hostile Shots Fired 70 | . 24 . . 46 Missed 24 | . 8 . . 16 Hits 46 | . 16 . . 30 Melee 8 | . . . . 8 Projectile 38 | . 16 . . 22 AOE 1 | . . . . 1 Critical Strikes 1 | . . . . 1 Damage Taken 673 | . 178 . . 495 Core 269 | . 100 . . 169 Absorbed by Shields . | . . . . . Core Remaining (%) 100 | 100 . . . . Volleys Fired 47 | . 19 . . 28 Largest 1 | . 1 . . 1 Hottest 20 | . 20 . . 20 Shots Fired 48 | . 19 . . 29 Gun 48 | . 19 . . 29 Cannon . | . . . . . Launcher . | . . . . . Special . | . . . . . Kinetic 48 | . 19 . . 29 Thermal . | . . . . . Explosive . | . . . . . Electromagnetic . | . . . . . Robot Hit Streak 7 | . 6 . . 7 Robot Miss Streak 4 | . 2 . . 4 Penetration Max . | . . . . . Secondary Targets . | . . . . . Shots Hit Robots 32 | . 14 . . 18 Core Hits 10 | . 6 . . 4 Critical Kills . | . . . . . Critical Parts Destroyed . | . . . . . Critical Strikes . | . . . . . Melee Attacks . | . . . . . Impact . | . . . . . Slashing . | . . . . . Piercing . | . . . . . Sneak Attacks . | . . . . . Combat Hostiles . | . . . . . Follow-up Attacks . | . . . . . Damage Inflicted 259 | . 108 . . 151 Guns 259 | . 108 . . 151 Cannons . | . . . . . Explosions . | . . . . . Melee . | . . . . . Ramming . | . . . . . Kinetic 259 | . 108 . . 151 Thermal . | . . . . . Explosive . | . . . . . Electromagnetic . | . . . . . Impact . | . . . . . Slashing . | . . . . . Piercing . | . . . . . Highest Corruption 9 | . . . . 9 Average Corruption 3 | . . . . 3 Corruption Purged . | . . . . . Corruption Blocked . | . . . . . Effects 4 | . . . . 4 Heat Flow Errors 1 | . . . . 1 Data Loss (minor) 2 | . . . . 2 Misfires 1 | . . . . 1 Overload Shots . | . . . . . Overflow Damage . | . . . . . Projectiles . | . . . . . Explosions . | . . . . . Melee . | . . . . . Knockbacks . | . . . . . Impact . | . . . . . Kinetic . | . . . . . Secondary . | . . . . . Self-Inflicted Damage . | . . . . . Shots . | . . . . . Rammed . | . . . . . Targets Rammed . | . . . . . Kicked . | . . . . . Crushed . | . . . . . Highest Temperature 168 | . 12 . . 168 Average Temperature 31 | . 9 . . 39 Received Heat Transfer 252 | . 96 . . 156 Siege Activations . | . . . . . Martial Activations . | . . . . . Shielding Activations . | . . . . . Robots Disrupted . | . . . . . Combat Hostiles . | . . . . . Robots Corrupted . | . . . . . Combat Hostiles . | . . . . . Parts Fried . | . . . . . Impact Corruptions . | . . . . . Robots Melted . | . . . . . Combat Hostiles . | . . . . . Parts Melted . | . . . . . Heat Transferred . | . . . . . Parts Sabotaged . | . . . . . Parts Stolen . | . . . . . Parts Stripped . | . . . . . Power Chain Reactions . | . . . . . Alert | -11 -10 -10 -10 -9 ------- Run | Yrd Mat Min Exi Min Maximum Alert Level . | . . . . . Low Security (%) 100 | 100 100 100 . 100 Level 1 . | . . . . . Level 2 . | . . . . . Level 3 . | . . . . . Level 4 . | . . . . . Level 5 . | . . . . . High Security . | . . . . . Max Security . | . . . . . Peak Influence 60 | . 60 7 . 20 Initial 7 | . . 7 . . Average 5 | . 12 . . 2 Influence Increases 90 | . 70 . . 20 Destroy 0b10 Robot/C 80 | . 60 . . 20 Destroy Leader 10 | . 10 . . . Influence Decreases 90 | . 50 20 . 20 Entered New Map 13 | . . 13 . . Time Decay 77 | . 50 7 . 20 Squads Dispatched 2 | . 2 . . . Investigation 2 | . 2 . . . Extermination . | . . . . . Reinforcement . | . . . . . Assault . | . . . . . Garrison . | . . . . . Intercept . | . . . . . Searches Triggered . | . . . . . Construction Impeded . | . . . . . Haulers Reinforced . | . . . . . Active Scanning Responses . | . . . . . Cargo Convoy Interrupts . | . . . . . Stealth | -11 -10 -10 -10 -9 --------- Run | Yrd Mat Min Exi Min Distress Signals 1 | . 1 . . . Communications Jammed . | . . . . . Distress Signals . | . . . . . Times Spotted 22 | . 5 . . 17 Peak Tracking Total 15 | . 3 . . 15 Tactical Retreats . | . . . . . Traps | -11 -10 -10 -10 -9 ------- Run | Yrd Mat Min Exi Min Traps Triggered 2 | . 2 . . . Indirectly . | . . . . . Trap Hack Attempts . | . . . . . Triggered . | . . . . . Disarmed . | . . . . . Reprogrammed . | . . . . . Reused . | . . . . . Traps Extracted . | . . . . . Installed . | . . . . . Triggered . | . . . . . Machines | -11 -10 -10 -10 -9 ---------- Run | Yrd Mat Min Exi Min Machines Disabled . | . . . . . Max in Single Turn . | . . . . . Machines Repaired . | . . . . . Machines Dismantled . | . . . . . Machines Sabotaged . | . . . . . Overloaded Fab Kills . | . . . . . Hacking | -11 -10 -10 -10 -9 --------- Run | Yrd Mat Min Exi Min Machines Accessed 1 | . . . 1 . Terminals . | . . . . . Fabricators . | . . . . . Repair Stations . | . . . . . Recycling Units . | . . . . . Scanalyzers . | . . . . . Garrison Access . | . . . . . Total Hacks 23 | . . . 23 . Successful 23 | . . . 23 . Failed . | . . . . . Catastrophic . | . . . . . Database Lockouts . | . . . . . Manual . | . . . . . Terminals . | . . . . . Fabricators . | . . . . . Repair Stations . | . . . . . Recycling Units . | . . . . . Scanalyzers . | . . . . . Garrison Access . | . . . . . Terminal Hacks 23 | . . . 23 . Record 23 | . . . 23 . Fabricator Hacks . | . . . . . Repair Station Hacks . | . . . . . Recycling Unit Hacks . | . . . . . Scanalyzer . | . . . . . Garrison Access Hacks . | . . . . . Unauthorized Hacks . | . . . . . Terminals . | . . . . . Fabricators . | . . . . . Repair Stations . | . . . . . Recycling Units . | . . . . . Scanalyzers . | . . . . . Garrison Access . | . . . . . Data Cores Recovered . | . . . . . Used . | . . . . . Hacking Detections . | . . . . . Full Trace Events . | . . . . . Feedback Events . | . . . . . Feedback Blocked . | . . . . . Robot Schematics Acquired . | . . . . . Robots Built . | . . . . . Authchips . | . . . . . Time . | . . . . . Total Robot Build Rating . | . . . . . Part Schematics Acquired . | . . . . . Parts Built . | . . . . . Authchips . | . . . . . Time . | . . . . . Total Part Build Rating . | . . . . . Parts Repaired . | . . . . . Time . | . . . . . Parts Recycled . | . . . . . Recycled Matter . | . . . . . Retrieved Matter . | . . . . . Retrieved Components . | . . . . . Parts Scanalyzed . | . . . . . Part Schematics Acquired . | . . . . . Parts Damaged . | . . . . . Bothacking | -11 -10 -10 -10 -9 ------------ Run | Yrd Mat Min Exi Min Used RIF Installer . | . . . . . Robots Hacked . | . . . . . Non-combat . | . . . . . Combat . | . . . . . Robot Hacks Applied . | . . . . . Relay Couplers Released . | . . . . . Fabnet Peak Effective % . | . . . . . Robots Rewired . | . . . . . Allies Hacked . | . . . . . Hacks Repelled . | . . . . . Allies | -11 -10 -10 -10 -9 -------- Run | Yrd Mat Min Exi Min Total Allies . | . . . . . Largest Group . | . . . . . Highest-Rated Group . | . . . . . Highest-Rated Ally . | . . . . . Total Orders . | . . . . . Ally Attacks . | . . . . . Total Damage . | . . . . . Kills . | . . . . . Allies Corrupted . | . . . . . Allies Melted . | . . . . . Intel | -11 -10 -10 -10 -9 ------- Run | Yrd Mat Min Exi Min Active Infowar (turns) 992 | . 247 226 358 161 Terrain 992 | . 247 226 358 161 Robot Analysis Total . | . . . . . Derelict Logs Recovered 1 | . . . . 1 Drone Launches . | . . . . . Drone Recoveries . | . . . . . Exploration | -11 -10 -10 -10 -9 ------------- Run | Yrd Mat Min Exi Min Turns Passed 1098 | 43 306 226 358 165 Spaces Moved 929 | 37 246 226 358 62 Core 4 | 1 . . . 3 Treads . | . . . . . Legs 59 | . . . . 59 Wheels 866 | 36 246 226 358 . Hover . | . . . . . Flight . | . . . . . Fastest Speed 50 | 50 100 100 100 120 Average Speed 105 | 98 100 100 100 179 Slowest Speed 190 | 100 100 100 100 190 Overloaded Moves . | . . . . . Propulsion Burnouts . | . . . . . Robots Hopped . | . . . . . Potential Cave-ins . | . . . . . Cave-ins Triggered . | . . . . . Exploration Rate (%) 33 | 4 32 40 74 15 Regions Visited 4 Branch Regions 3 Pre-discovered Areas 2 | . . . 1 1 Known Exits Taken . | . . . . . Unknown Exits Taken 4 | 1 1 1 1 . Scrap Searched 1 | . . 1 . . Spaces Dug . | . . . . . Terrain Destroyed . | . . . . . Melee . | . . . . . Projectile . | . . . . . AOE . | . . . . . Terrain Rammed . | . . . . . Walls Destroyed . | . . . . . Machines Disabled . | . . . . . Actions | -11 -10 -10 -10 -9 --------- Run | Yrd Mat Min Exi Min Total 1008 | 41 290 226 358 93 Wait 22 | . 22 . . . Move 925 | 36 245 225 357 62 Hop . | . . . . . Pick Up 4 | . 3 1 . . Fast Attach 9 | 5 1 . . 3 Attach . | . . . . . Detach . | . . . . . Swap . | . . . . . Drop . | . . . . . Fire 47 | . 19 . . 28 Melee . | . . . . . Ram . | . . . . . Kick . | . . . . . Crush . | . . . . . Escape Stasis . | . . . . . Rewire 1 | . . . 1 . Trap . | . . . . . Miscellaneous . | . . . . . Route ------- -11/Scrapyard -10/Materials -10/Mines -10/Exiles -9/Mines History --------- Turn | Location | Event 26 | -11/Scrapyard | Discovered new exit (range 13) 44 | -11/Scrapyard | Entered Materials 45 | -10/Materials | Met a group of wandering Federalists 314 | -10/Materials | Build established: Mutant 339 | -10/Materials | Discovered new exit (range 8) 350 | -10/Materials | Entered Mines 569 | -10/Mines | Deemed a non-threat by the Exiles lab entrance 570 | -10/Mines | Discovered new exit (range 5) 576 | -10/Mines | Entered Exiles 611 | -10/Exiles | Met 8R-AWN 636 | -10/Exiles | Met EX-HEX 696 | -10/Exiles | Met EX-DEC 731 | -10/Exiles | Visited The Gauntlet 862 | -10/Exiles | Learned location of Zion (-7) 915 | -10/Exiles | Discovered new exit (range 14) 934 | -10/Exiles | Entered Mines 945 | -9/Mines | Core integrity fell below 50% 979 | -9/Mines | Lost 3 parts (1p2n) 1020 | -9/Mines | Met a Derelict bent on vengeance 1074 | -9/Mines | Assembled infested the area 1095 | -9/Mines | Core integrity fell below 20% 1099 | -9/Mines | Destroyed by as-30227 with Assembled Maul Last Messages --------------- 01074_ ALERT: Infestation in the mines, dispatching Demolisher response squad. 01074_ K-01 Serf collects debris. 01079_ K-01 Serf destroyed. 01079_ K-01 Serf collects debris. 01082_ JS-SP4(g): "I WILL HAVE VENGEANCE!" 01089_ T-07 Excavator is excavating. 01095_ Lgt. Assault Rifle destroyed. 01095_ Terrain Scanner destroyed. 01095_ System corrupted by crushing effect (+4). 01095_ System corrupted by crushing effect (+2). 01095_ Knocked back. 01096_ as-16561 destroyed. 01096_ as-75127 destroyed. 01096_ as-47294 destroyed. 01098_ System corrupted: Component data lost. 01098_ as-52349 destroyed. 01098_ Ion Engine destroyed. 01098_ as-52735 destroyed. 01098_ as-85847 destroyed. Map ----- +----------------------------------------------------+ | ????????????????????????????????????????????? | | ????????????????????????????????????????????? | | ????????????????????????????????????????????? | | ????????????????????????????????????????????? | | ????????????????????????????????????????????? | | ????????????????????????????????????????????? | | ????????????????????????????????????????????? | | ????????????????????????????????????????????? | | ????????????????????????????????????????????? | | ????????????????????????????????????????????? | | ????????????????????????????????????????????? | | ????????????????????????????????????????????? | | ????????????????????????#???????????????????? | | ???????????????????????? ???????????????????? | | ??????????????????????? ????????????????????? | | ??????????????????????? ????????????????????? | | ??????????????????????? ????????????????????? | | ??????????????????????d##?#?????????????????? | | ?????????????????????? !##??????????????????? | | ?????????????????????? % ######?????????????? | | ?????????????????#####d= ##????????????? | | ???????????????### =%= #????????????? | | ???????????????# ####?????????? | | ???????????????# !????????? | | ???????????????# a a ????????? | | ???????????????# @ % #?????????????? | | ???????????????###aa a #?????????????? | | ??????????????### a % ##?????????????? | | ?????????????## a #??????????????? | | ????????????## ########??????????????? | | ????????????# ####????????????????????? | | ?????#?# ### #?#?????????????????????? | | ???????### #??# #?#?????????????????????? | | ????????## ???# #???????????????????????? | | ?????????# ????# #???????????????????????? | | ?????????# ???### #??????????#????????????? | | ????#????##????# g ##???????#??????????????? | | ????????##?????# #???????????????????????? | | ???#???????????# ###????????? ?????????????? | | ???????????????# #?????????????????????????? | | ???????#??#?#??# #?????????????????????????? | | ???#????#?#??### #?????????????????????????? | | ?????#???????## ##????????????????????????? | | ????#????#?#?# ######???????????????????? | | ??##?????????# #????????????? | | ?????????????# ########??????????????????? | | ???########??# #??#??????????????????????? | | ???# #??## ##?????????????????????????? | | ???# """ #??## ##??#???????????????????????? | | #??# """ ##??# #?#?????????????????????????? | +----------------------------------------------------+ Best States ------------- Heat Dissipation 25 Energy Generation 10 Energy Capacity 250 Matter Stores 300 Matter Capacity 300 Sight Range 16 Terrain Scan Range 14 Terrain Scan Density 10 Evasion (%) 40 Item Schematics ----------------- None Robot Schematics ------------------ None Fabricated ------------ Nothing Repaired ---------- Nothing Alien Tech Used ----------------- None Achievements -------------- Librarian Tourist Challenges ------------ None Game ------ Seed ElectrostormLongswordWell Manual? 0 Play Time 00:21:24 Cumulative 4.4 hours Start 2025.07.23 @ 16:57:01 End 2025.07.23 @ 17:21:34 Sessions 1 Manual Loads 0 Difficulty Rogue Special Mode None Game No. 7 Rogue 5 Adventurer 2 Explorer 0 Win Type - Total 0 Types 0/0/0/0/0/0/0/0/0/0 Lore% 3 Gallery% 5 Achievement% 5 Wizard Run 0 Options --------- Layout 1 ASCII 0 Keyboard 0 Movement Arrows Keybinds 0 Fullscreen 1 Font 24/Smallcaps Map View 25x17 Zoom Use 98% Tactical HUD 1 Map Filters NONE Filters NONE Steam 1 RUN: 1928a31a-a55d-4dd2-a617-3caef1dfbda2